[Event "*** Titled Tuesday Blitz"]
[Site "Chess.com"]
[Date "2020.02.04"]
[Round "6"]
[White "Reality-Stone"]
[Black "Funkmaus"]
[Result "1-0"]
[WhiteElo "2479"]
[BlackElo "2177"]
[TimeControl "180+2"]
[EndTime "10:20:34 PST"]
[Termination "Reality-Stone won by checkmate"]

1. d4 {[%clk 0:03:01.9]} 1... d5 {[%clk 0:03:00.8]} 2. c4 {[%clk 0:03:01.8]}
2... c6 {[%clk 0:03:01.5]} 3. Nc3 {[%clk 0:03:01.9]} 3... Nf6 {[%clk 0:03:02.8]}
4. e3 {[%clk 0:03:02.6]} 4... e6 {[%clk 0:03:02.9]} 5. Nf3 {[%clk 0:03:03.6]}
5... Nbd7 {[%clk 0:03:01.5]} 6. Qc2 {[%clk 0:03:04.7]} 6... Bd6 {[%clk
0:02:59.9]} 7. Bd3 {[%clk 0:03:05.3]} 7... Qe7 {[%clk 0:02:55.7]} 8. O-O {[%clk
0:03:05.2]} 8... O-O {[%clk 0:02:50.6]} 9. e4 {[%clk 0:03:04.4]} 9... dxc4
{[%clk 0:02:48.8]} 10. Bxc4 {[%clk 0:03:03.1]} 10... e5 {[%clk 0:02:48.9]} 11.
h3 {[%clk 0:03:03.4]} 11... Nb6 {[%clk 0:02:30.9]} 12. Bb3 {[%clk 0:02:58.7]}
12... Be6 {[%clk 0:02:26.6]} 13. dxe5 {[%clk 0:02:56]} 13... Bxe5 {[%clk
0:02:26.5]} 14. Nxe5 {[%clk 0:02:50.5]} 14... Bxb3 {[%clk 0:02:27.3]} 15. axb3
{[%clk 0:02:44.5]} 15... Qxe5 {[%clk 0:02:27.4]} 16. Be3 {[%clk 0:02:43.8]}
16... Rfe8 {[%clk 0:02:18.4]} 17. f4 {[%clk 0:02:43.8]} 17... Qe6 {[%clk
0:01:59.1]} 18. e5 {[%clk 0:02:35.1]} 18... Nfd5 {[%clk 0:01:56.2]} 19. Nxd5
{[%clk 0:02:35.3]} 19... Nxd5 {[%clk 0:01:21.6]} 20. Bd4 {[%clk 0:02:35.4]}
20... b6 {[%clk 0:01:13.4]} 21. f5 {[%clk 0:02:35.9]} 21... Qh6 {[%clk
0:01:07.9]} 22. Rae1 {[%clk 0:02:34]} 22... c5 {[%clk 0:01:01.5]} 23. Bf2 {[%clk
0:02:25.1]} 23... Rad8 {[%clk 0:00:57.7]} 24. Qe4 {[%clk 0:02:16.6]} 24... Nb4
{[%clk 0:00:52.5]} 25. Be3 {[%clk 0:02:12.9]} 25... Qh5 {[%clk 0:00:50.6]} 26.
Rf3 {[%clk 0:01:49.3]} 26... Nd3 {[%clk 0:00:44.3]} 27. g4 {[%clk 0:01:35]}
27... Qh4 {[%clk 0:00:37.3]} 28. Bf2 {[%clk 0:01:31.4]} 28... Nxf2 {[%clk
0:00:33.2]} 29. Rxf2 {[%clk 0:01:33.3]} 29... Rd4 {[%clk 0:00:31]} 30. Qf3
{[%clk 0:01:30.2]} 30... Red8 {[%clk 0:00:25]} 31. e6 {[%clk 0:01:25.3]} 31...
Rd3 {[%clk 0:00:17.2]} 32. e7 {[%clk 0:01:15.8]} 32... Rxf3 {[%clk 0:00:03.8]}
33. e8=Q+ {[%clk 0:01:15.8]} 33... Rxe8 {[%clk 0:00:04.8]} 34. Rxe8# {[%clk
0:01:17.2]} 1-0

[Event "*** Titled Tuesday Blitz"]
[Site "Chess.com"]
[Date "2020.02.04"]
[Round "6"]
[White "Lubov_Gordyk"]
[Black "evgenyermolaev"]
[Result "1-0"]
[WhiteElo "2633"]
[BlackElo "2517"]
[TimeControl "180+2"]
[EndTime "10:20:41 PST"]
[Termination "Lubov_Gordyk won on time"]

1. e4 {[%clk 0:03:01.9]} 1... c5 {[%clk 0:03:00.9]} 2. g3 {[%clk 0:03:02.5]}
2... g6 {[%clk 0:02:57.1]} 3. Bg2 {[%clk 0:03:03.4]} 3... Bg7 {[%clk 0:02:58.7]}
4. Ne2 {[%clk 0:03:04.8]} 4... Nc6 {[%clk 0:02:58.8]} 5. d3 {[%clk 0:03:05.6]}
5... d6 {[%clk 0:03:00.3]} 6. O-O {[%clk 0:03:05.7]} 6... Rb8 {[%clk 0:03:01.3]}
7. c3 {[%clk 0:03:04.8]} 7... Nf6 {[%clk 0:03:01.3]} 8. d4 {[%clk 0:03:05.6]}
8... O-O {[%clk 0:02:51]} 9. h3 {[%clk 0:03:06.4]} 9... Bd7 {[%clk 0:02:47.3]}
10. Be3 {[%clk 0:03:06.5]} 10... b6 {[%clk 0:01:55.5]} 11. Na3 {[%clk 0:03:03]}
11... Na5 {[%clk 0:01:51.1]} 12. f4 {[%clk 0:02:57.6]} 12... cxd4 {[%clk
0:01:45.4]} 13. cxd4 {[%clk 0:02:58.1]} 13... d5 {[%clk 0:01:44.9]} 14. e5
{[%clk 0:02:54.8]} 14... Ne4 {[%clk 0:01:45.9]} 15. g4 {[%clk 0:02:34.7]} 15...
e6 {[%clk 0:01:38.9]} 16. b4 {[%clk 0:02:22.4]} 16... Qe7 {[%clk 0:01:33.6]} 17.
Rb1 {[%clk 0:02:15.8]} 17... Rfc8 {[%clk 0:01:32]} 18. Bxe4 {[%clk 0:01:42.3]}
18... dxe4 {[%clk 0:01:32.3]} 19. Qd2 {[%clk 0:01:34.3]} 19... Nc4 {[%clk
0:01:02.9]} 20. Nxc4 {[%clk 0:01:30.3]} 20... Rxc4 {[%clk 0:01:04.8]} 21. Rfc1
{[%clk 0:01:26.1]} 21... Rbc8 {[%clk 0:01:04.9]} 22. Rxc4 {[%clk 0:01:26.1]}
22... Rxc4 {[%clk 0:01:06.8]} 23. a3 {[%clk 0:01:24.6]} 23... Bb5 {[%clk
0:01:03.7]} 24. Nc3 {[%clk 0:01:15.3]} 24... Bc6 {[%clk 0:00:51.8]} 25. Rc1
{[%clk 0:01:14.3]} 25... Qc7 {[%clk 0:00:39.9]} 26. Kf2 {[%clk 0:00:58.9]} 26...
Bf8 {[%clk 0:00:21.7]} 27. f5 {[%clk 0:01:00]} 27... a5 {[%clk 0:00:16.6]} 28.
Bh6 {[%clk 0:00:47.6]} 28... axb4 {[%clk 0:00:15.3]} 29. Bxf8 {[%clk 0:00:47]}
29... bxc3 {[%clk 0:00:08.1]} 30. Qh6 {[%clk 0:00:46.9]} 30... f6 {[%clk
0:00:09.5]} 31. fxe6 {[%clk 0:00:42]} 1-0

[Event "*** Titled Tuesday Blitz"]
[Site "Chess.com"]
[Date "2020.02.04"]
[Round "6"]
[White "Elshan1985"]
[Black "NiranjanNavalgund"]
[Result "1-0"]
[WhiteElo "2684"]
[BlackElo "2415"]
[TimeControl "180+2"]
[EndTime "10:20:43 PST"]
[Termination "Elshan1985 won by checkmate"]

1. c4 {[%clk 0:03:01.9]} 1... e6 {[%clk 0:03:00.7]} 2. d4 {[%clk 0:03:02.6]}
2... d5 {[%clk 0:03:01.5]} 3. Nc3 {[%clk 0:03:03.9]} 3... c5 {[%clk 0:03:01.9]}
4. cxd5 {[%clk 0:03:04]} 4... exd5 {[%clk 0:03:03.8]} 5. Nf3 {[%clk 0:03:05.1]}
5... Nc6 {[%clk 0:03:04.4]} 6. g3 {[%clk 0:03:06.5]} 6... Nf6 {[%clk 0:03:05.5]}
7. Bg2 {[%clk 0:03:07.9]} 7... cxd4 {[%clk 0:03:06.9]} 8. Nxd4 {[%clk
0:03:08.6]} 8... Bc5 {[%clk 0:03:08]} 9. Nxc6 {[%clk 0:03:07.7]} 9... bxc6
{[%clk 0:03:06.5]} 10. O-O {[%clk 0:03:08.3]} 10... O-O {[%clk 0:03:03.4]} 11.
Na4 {[%clk 0:03:08.7]} 11... Bb6 {[%clk 0:03:03]} 12. Qc2 {[%clk 0:03:08.3]}
12... Bd7 {[%clk 0:02:43.7]} 13. Nc5 {[%clk 0:03:06.3]} 13... Be8 {[%clk
0:02:29]} 14. Be3 {[%clk 0:03:05.1]} 14... Nd7 {[%clk 0:02:18.5]} 15. Rac1
{[%clk 0:03:02]} 15... Rb8 {[%clk 0:02:15.3]} 16. b3 {[%clk 0:02:57.8]} 16...
Nxc5 {[%clk 0:02:12.4]} 17. Bxc5 {[%clk 0:02:58.1]} 17... Bxc5 {[%clk
0:02:14.3]} 18. Qxc5 {[%clk 0:02:59.7]} 18... Qb6 {[%clk 0:02:16.2]} 19. e4
{[%clk 0:02:56.9]} 19... dxe4 {[%clk 0:02:02]} 20. Bxe4 {[%clk 0:02:57.4]} 20...
Qxc5 {[%clk 0:02:00.9]} 21. Rxc5 {[%clk 0:02:57.9]} 21... Bd7 {[%clk 0:02:00.8]}
22. Rd1 {[%clk 0:02:57]} 22... Rb7 {[%clk 0:01:57.1]} 23. Bxc6 {[%clk
0:02:56.2]} 23... Bxc6 {[%clk 0:01:56.2]} 24. Rxc6 {[%clk 0:02:57.8]} 24... g6
{[%clk 0:01:56]} 25. Rdc1 {[%clk 0:02:54.8]} 25... Ra8 {[%clk 0:01:53.6]} 26.
Kf1 {[%clk 0:02:50.5]} 26... a5 {[%clk 0:01:53.9]} 27. Rc8+ {[%clk 0:02:51.2]}
27... Rxc8 {[%clk 0:01:54.1]} 28. Rxc8+ {[%clk 0:02:53.1]} 28... Kg7 {[%clk
0:01:56]} 29. Ra8 {[%clk 0:02:54.7]} 29... Rb5 {[%clk 0:01:55.4]} 30. Ke2 {[%clk
0:02:56.4]} 30... h5 {[%clk 0:01:53.6]} 31. Kd3 {[%clk 0:02:55.6]} 31... h4
{[%clk 0:01:53.4]} 32. Kc4 {[%clk 0:02:43.6]} 32... Rf5 {[%clk 0:01:49]} 33. f4
{[%clk 0:02:44.3]} 33... h3 {[%clk 0:01:48.2]} 34. Re8 {[%clk 0:02:40.7]} 34...
g5 {[%clk 0:01:47.8]} 35. Re5 {[%clk 0:02:38.7]} 35... Kg6 {[%clk 0:01:20]} 36.
Rxf5 {[%clk 0:02:04]} 36... Kxf5 {[%clk 0:01:21.9]} 37. fxg5 {[%clk 0:02:04.9]}
37... Ke4 {[%clk 0:01:21.3]} 38. a4 {[%clk 0:01:24.3]} 38... Kf3 {[%clk
0:01:21.8]} 39. b4 {[%clk 0:01:25.4]} 39... axb4 {[%clk 0:01:05.8]} 40. a5
{[%clk 0:01:24.3]} 40... b3 {[%clk 0:01:07.1]} 41. Kxb3 {[%clk 0:01:25.1]} 41...
Kg2 {[%clk 0:01:07.2]} 42. a6 {[%clk 0:01:26.4]} 42... Kxh2 {[%clk 0:01:06.4]}
43. a7 {[%clk 0:01:27.7]} 43... Kg1 {[%clk 0:01:03]} 44. a8=Q {[%clk 0:01:28.1]}
44... h2 {[%clk 0:01:04.4]} 45. Qa1+ {[%clk 0:01:28.9]} 45... Kg2 {[%clk
0:01:05.3]} 46. Qb2+ {[%clk 0:01:29.1]} 46... Kxg3 {[%clk 0:01:03.2]} 47. Qb1
{[%clk 0:01:27.6]} 47... Kg2 {[%clk 0:01:02.9]} 48. Qe4+ {[%clk 0:01:28.3]}
48... Kg1 {[%clk 0:01:03.8]} 49. Qg4+ {[%clk 0:01:27.9]} 49... Kf2 {[%clk
0:01:01.8]} 50. Qh3 {[%clk 0:01:28.5]} 50... Kg1 {[%clk 0:01:03]} 51. Qg3+
{[%clk 0:01:29.9]} 51... Kh1 {[%clk 0:01:04.2]} 52. Qf2 {[%clk 0:01:31]} 52...
f5 {[%clk 0:01:04.9]} 53. Qf1# {[%clk 0:01:32.4]} 1-0

[Event "*** Titled Tuesday Blitz"]
[Site "Chess.com"]
[Date "2020.02.04"]
[Round "6"]
[White "killer311"]
[Black "Everyfishknows"]
[Result "1/2-1/2"]
[WhiteElo "2226"]
[BlackElo "2308"]
[TimeControl "180+2"]
[EndTime "10:20:50 PST"]
[Termination "Game drawn by stalemate"]

1. d4 {[%clk 0:03:01.9]} 1... Nf6 {[%clk 0:02:58.7]} 2. Nf3 {[%clk 0:03:01.3]}
2... g6 {[%clk 0:02:51.2]} 3. c4 {[%clk 0:03:01.6]} 3... Bg7 {[%clk 0:02:51.1]}
4. g3 {[%clk 0:03:01.1]} 4... d6 {[%clk 0:02:51.6]} 5. Bg2 {[%clk 0:03:02]} 5...
O-O {[%clk 0:02:52.7]} 6. Nc3 {[%clk 0:03:03.2]} 6... Nc6 {[%clk 0:02:53.1]} 7.
O-O {[%clk 0:03:04.3]} 7... e5 {[%clk 0:02:53.9]} 8. dxe5 {[%clk 0:03:02.6]}
8... dxe5 {[%clk 0:02:54.7]} 9. Qxd8 {[%clk 0:03:03.7]} 9... Rxd8 {[%clk
0:02:55.5]} 10. Bg5 {[%clk 0:03:05.3]} 10... h6 {[%clk 0:02:56.4]} 11. Bxf6
{[%clk 0:03:05.4]} 11... Bxf6 {[%clk 0:02:58.3]} 12. Nd5 {[%clk 0:03:01]} 12...
Kg7 {[%clk 0:02:59.1]} 13. Nxc7 {[%clk 0:03:01.6]} 13... Rb8 {[%clk 0:03:00.7]}
14. Nd5 {[%clk 0:03:02.6]} 14... e4 {[%clk 0:03:01.3]} 15. Nd2 {[%clk
0:02:58.6]} 15... Bxb2 {[%clk 0:03:01.8]} 16. Rab1 {[%clk 0:02:59.7]} 16... Ba3
{[%clk 0:03:02.7]} 17. Nxe4 {[%clk 0:02:58.9]} 17... Be6 {[%clk 0:02:56.4]} 18.
Nec3 {[%clk 0:02:50.2]} 18... Na5 {[%clk 0:02:03.3]} 19. Rfd1 {[%clk 0:02:33.3]}
19... b6 {[%clk 0:01:52.7]} 20. Nb5 {[%clk 0:02:09.1]} 20... Nxc4 {[%clk
0:01:37.8]} 21. Rd4 {[%clk 0:01:58.4]} 21... Bc5 {[%clk 0:00:55.8]} 22. Rxc4
{[%clk 0:01:50.7]} 22... Bxd5 {[%clk 0:00:56.5]} 23. Bxd5 {[%clk 0:01:49.8]}
23... Rxd5 {[%clk 0:00:57.4]} 24. Nxa7 {[%clk 0:01:50.4]} 24... Ra8 {[%clk
0:00:52.5]} 25. Nc6 {[%clk 0:01:48.3]} 25... Rxa2 {[%clk 0:00:48.9]} 26. Nb4
{[%clk 0:01:45.7]} 26... Bxb4 {[%clk 0:00:36.7]} 27. Rcxb4 {[%clk 0:01:46.7]}
27... Rxe2 {[%clk 0:00:37]} 28. Rxb6 {[%clk 0:01:47.5]} 28... Red2 {[%clk
0:00:26.1]} 29. Rb7 {[%clk 0:01:45.8]} 29... Rd7 {[%clk 0:00:26.6]} 30. Rxd7
{[%clk 0:01:45.9]} 30... Rxd7 {[%clk 0:00:27.2]} 31. Kg2 {[%clk 0:01:47.5]}
31... h5 {[%clk 0:00:28.4]} 32. Rb6 {[%clk 0:01:44.4]} 32... Rd5 {[%clk
0:00:29]} 33. Kf3 {[%clk 0:01:44.8]} 33... Rd3+ {[%clk 0:00:29.7]} 34. Kg2
{[%clk 0:01:45]} 34... Rc3 {[%clk 0:00:30.6]} 35. h4 {[%clk 0:01:45.9]} 35...
Rd3 {[%clk 0:00:31.5]} 36. Rb2 {[%clk 0:01:44.4]} 36... Rc3 {[%clk 0:00:32.5]}
37. Kf1 {[%clk 0:01:45.6]} 37... Ra3 {[%clk 0:00:31.7]} 38. Ke2 {[%clk
0:01:46.5]} 38... Rc3 {[%clk 0:00:32.6]} 39. Rd2 {[%clk 0:01:47.3]} 39... Ra3
{[%clk 0:00:33.6]} 40. Rd3 {[%clk 0:01:48.2]} 40... Rxd3 {[%clk 0:00:34.7]} 41.
Kxd3 {[%clk 0:01:49.3]} 41... Kf6 {[%clk 0:00:35.8]} 42. Ke4 {[%clk 0:01:50.4]}
42... Ke6 {[%clk 0:00:37.1]} 43. f3 {[%clk 0:01:50.1]} 43... f6 {[%clk 0:00:36]}
44. g4 {[%clk 0:01:45.1]} 44... hxg4 {[%clk 0:00:36.3]} 45. fxg4 {[%clk
0:01:45.5]} 45... Kf7 {[%clk 0:00:37.3]} 46. Kd5 {[%clk 0:01:43.1]} 46... Ke7
{[%clk 0:00:38.3]} 47. h5 {[%clk 0:01:25.1]} 47... gxh5 {[%clk 0:00:38.9]} 48.
gxh5 {[%clk 0:01:26.2]} 48... Kf7 {[%clk 0:00:39.1]} 49. Ke4 {[%clk 0:01:27.4]}
49... f5+ {[%clk 0:00:39.4]} 50. Kxf5 {[%clk 0:01:28.4]} 50... Kg8 {[%clk
0:00:40.5]} 51. Kg6 {[%clk 0:01:29.4]} 51... Kh8 {[%clk 0:00:41.7]} 52. h6
{[%clk 0:01:31.2]} 52... Kg8 {[%clk 0:00:42.6]} 53. h7+ {[%clk 0:01:33.1]} 53...
Kh8 {[%clk 0:00:44.5]} 54. Kh6 {[%clk 0:01:34.2]} 1/2-1/2

[Event "*** Titled Tuesday Blitz"]
[Site "Chess.com"]
[Date "2020.02.04"]
[Round "6"]
[White "KRASAVCHIK2002"]
[Black "Coiote53"]
[Result "0-1"]
[WhiteElo "2513"]
[BlackElo "2617"]
[TimeControl "180+2"]
[EndTime "10:21:00 PST"]
[Termination "Coiote53 won by checkmate"]

1. e4 {[%clk 0:03:00.8]} 1... e5 {[%clk 0:02:57.3]} 2. Nf3 {[%clk 0:03:01]} 2...
Nc6 {[%clk 0:02:55.8]} 3. Bc4 {[%clk 0:03:01.5]} 3... Nf6 {[%clk 0:02:54.7]} 4.
Ng5 {[%clk 0:03:00.7]} 4... d5 {[%clk 0:02:53.3]} 5. exd5 {[%clk 0:03:02.6]}
5... Nd4 {[%clk 0:02:53.5]} 6. c3 {[%clk 0:02:54.2]} 6... b5 {[%clk 0:02:52]} 7.
Bf1 {[%clk 0:02:55.5]} 7... Nxd5 {[%clk 0:02:51.9]} 8. cxd4 {[%clk 0:02:53.7]}
8... Qxg5 {[%clk 0:02:52.4]} 9. Bxb5+ {[%clk 0:02:55.3]} 9... Kd8 {[%clk
0:02:54]} 10. O-O {[%clk 0:02:56.1]} 10... Bb7 {[%clk 0:02:54.6]} 11. Qf3 {[%clk
0:02:54.7]} 11... exd4 {[%clk 0:02:56]} 12. d3 {[%clk 0:02:43.8]} 12... Qe5
{[%clk 0:02:55.1]} 13. Na3 {[%clk 0:02:41]} 13... Bd6 {[%clk 0:02:49.5]} 14. g3
{[%clk 0:02:35.9]} 14... Bxa3 {[%clk 0:02:47.7]} 15. bxa3 {[%clk 0:02:35.4]}
15... Rb8 {[%clk 0:02:19.7]} 16. Qxf7 {[%clk 0:02:26.5]} 16... Ne7 {[%clk
0:02:10.4]} 17. Bc4 {[%clk 0:02:23.3]} 17... Qf6 {[%clk 0:01:34]} 18. Qxf6
{[%clk 0:02:20.3]} 18... gxf6 {[%clk 0:01:35.9]} 19. Re1 {[%clk 0:02:20.1]}
19... Bd5 {[%clk 0:01:26.3]} 20. Bxd5 {[%clk 0:02:18.8]} 20... Nxd5 {[%clk
0:01:27.3]} 21. Bf4 {[%clk 0:02:20.7]} 21... Kd7 {[%clk 0:01:20.2]} 22. Re4
{[%clk 0:02:13.8]} 22... Rb2 {[%clk 0:01:09.1]} 23. Rxd4 {[%clk 0:02:08.8]}
23... c6 {[%clk 0:01:10.6]} 24. Bc1 {[%clk 0:01:48.6]} 24... Rc2 {[%clk
0:00:55.5]} 25. Bf4 {[%clk 0:01:46]} 25... Re8 {[%clk 0:00:42.4]} 26. Rb1 {[%clk
0:01:37.3]} 26... Ree2 {[%clk 0:00:36.2]} 27. Rb7+ {[%clk 0:01:36.8]} 27... Kc8
{[%clk 0:00:31.5]} 28. Rb8+ {[%clk 0:01:37.7]} 28... Kd7 {[%clk 0:00:32.7]} 29.
Rb7+ {[%clk 0:01:38.2]} 29... Kc8 {[%clk 0:00:34.2]} 30. Rb8+ {[%clk 0:01:25.7]}
30... Kd7 {[%clk 0:00:34.2]} 31. Be3 {[%clk 0:01:22.2]} 31... Rxa2 {[%clk
0:00:25.8]} 32. Rb7+ {[%clk 0:01:21.9]} 32... Kd6 {[%clk 0:00:24.2]} 33. Rxh7
{[%clk 0:01:11.3]} 33... f5 {[%clk 0:00:17]} 34. Rxa7 {[%clk 0:01:09.4]} 34...
Ke6 {[%clk 0:00:17]} 35. h4 {[%clk 0:01:01.5]} 35... Nxe3 {[%clk 0:00:13.9]} 36.
fxe3 {[%clk 0:01:00.9]} 36... Re1# {[%clk 0:00:15]} 0-1

[Event "*** Titled Tuesday Blitz"]
[Site "Chess.com"]
[Date "2020.02.04"]
[Round "6"]
[White "GMHellers"]
[Black "Rud_Makarian"]
[Result "1/2-1/2"]
[WhiteElo "2507"]
[BlackElo "2606"]
[TimeControl "180+2"]
[EndTime "10:21:00 PST"]
[Termination "Game drawn - insufficient material"]

1. e4 {[%clk 0:02:59.6]} 1... c6 {[%clk 0:03:00.2]} 2. d4 {[%clk 0:02:59.8]}
2... d5 {[%clk 0:03:02.1]} 3. Nc3 {[%clk 0:03:00.7]} 3... dxe4 {[%clk 0:03:02]}
4. Nxe4 {[%clk 0:03:01.7]} 4... Nf6 {[%clk 0:03:03.9]} 5. Nxf6+ {[%clk 0:03:02]}
5... exf6 {[%clk 0:03:05.8]} 6. c3 {[%clk 0:03:02.1]} 6... Bd6 {[%clk
0:03:07.7]} 7. Bd3 {[%clk 0:03:02.2]} 7... O-O {[%clk 0:03:09.6]} 8. Qc2 {[%clk
0:03:01.7]} 8... Re8+ {[%clk 0:03:11.5]} 9. Ne2 {[%clk 0:03:01.2]} 9... h5
{[%clk 0:03:12.8]} 10. Be3 {[%clk 0:02:59.8]} 10... Nd7 {[%clk 0:03:11.9]} 11.
O-O-O {[%clk 0:02:56.6]} 11... Nf8 {[%clk 0:03:11]} 12. Nf4 {[%clk 0:02:48.8]}
12... Bxf4 {[%clk 0:03:10.6]} 13. Bxf4 {[%clk 0:02:48.5]} 13... Be6 {[%clk
0:03:12.5]} 14. f3 {[%clk 0:02:23.6]} 14... b5 {[%clk 0:03:06]} 15. Rhe1 {[%clk
0:02:20]} 15... a5 {[%clk 0:03:04.1]} 16. Be4 {[%clk 0:02:02.9]} 16... Bd5
{[%clk 0:03:02.6]} 17. Re2 {[%clk 0:01:49]} 17... Qd7 {[%clk 0:02:59.5]} 18.
Rde1 {[%clk 0:01:49.3]} 18... g6 {[%clk 0:02:58.4]} 19. h3 {[%clk 0:01:31.5]}
19... f5 {[%clk 0:02:57]} 20. Bxd5 {[%clk 0:01:29.4]} 20... cxd5 {[%clk
0:02:58.9]} 21. Rxe8 {[%clk 0:01:20.7]} 21... Rxe8 {[%clk 0:03:00.7]} 22. Rxe8
{[%clk 0:01:21.3]} 22... Qxe8 {[%clk 0:03:02.6]} 23. Kd1 {[%clk 0:01:22]} 23...
Ne6 {[%clk 0:03:00]} 24. Bd2 {[%clk 0:01:14.9]} 24... Qc6 {[%clk 0:02:59.5]} 25.
Qd3 {[%clk 0:01:15.3]} 25... Nc7 {[%clk 0:02:56.8]} 26. b3 {[%clk 0:01:13.7]}
26... a4 {[%clk 0:02:54.4]} 27. Qe3 {[%clk 0:01:12.7]} 27... Qe6 {[%clk
0:02:53.1]} 28. Qxe6 {[%clk 0:01:08.5]} 28... fxe6 {[%clk 0:02:55]} 29. bxa4
{[%clk 0:01:06.3]} 29... bxa4 {[%clk 0:02:55.6]} 30. Kc2 {[%clk 0:01:01.3]}
30... Nb5 {[%clk 0:02:55.6]} 31. Bf4 {[%clk 0:00:55.1]} 31... Na3+ {[%clk
0:02:55.3]} 32. Kd3 {[%clk 0:00:52.5]} 32... Nc4 {[%clk 0:02:57.2]} 33. h4
{[%clk 0:00:52.1]} 33... Kf7 {[%clk 0:02:55.6]} 34. Ke2 {[%clk 0:00:48.7]} 34...
Ke8 {[%clk 0:02:56.1]} 35. Kd3 {[%clk 0:00:48.9]} 35... Kd7 {[%clk 0:02:57.4]}
36. Bg3 {[%clk 0:00:41.7]} 36... Kc6 {[%clk 0:02:56.7]} 37. Bf4 {[%clk
0:00:41.7]} 37... Kb5 {[%clk 0:02:57]} 38. Bg3 {[%clk 0:00:37.5]} 38... a3
{[%clk 0:02:52.4]} 39. Bf4 {[%clk 0:00:36.3]} 39... Nb2+ {[%clk 0:02:52.7]} 40.
Kc2 {[%clk 0:00:32.6]} 40... Kc4 {[%clk 0:02:48.2]} 41. Bc1 {[%clk 0:00:32.9]}
41... Nd3 {[%clk 0:02:45.3]} 42. Bxa3 {[%clk 0:00:33.3]} 42... Ne1+ {[%clk
0:02:46.2]} 43. Kd2 {[%clk 0:00:34.1]} 43... Nxg2 {[%clk 0:02:48.1]} 44. Be7
{[%clk 0:00:34.1]} 44... Kb5 {[%clk 0:02:38.4]} 45. Bf6 {[%clk 0:00:33.4]} 45...
Ka4 {[%clk 0:02:37.4]} 46. Be7 {[%clk 0:00:32.5]} 46... Nf4 {[%clk 0:02:36.1]}
47. Ke3 {[%clk 0:00:31.6]} 47... Ng2+ {[%clk 0:02:35.4]} 48. Kd2 {[%clk
0:00:30.2]} 48... f4 {[%clk 0:02:30.6]} 49. Bg5 {[%clk 0:00:21]} 49... Ka3
{[%clk 0:02:28.8]} 50. c4 {[%clk 0:00:21.6]} 50... dxc4 {[%clk 0:02:29.6]} 51.
Kc3 {[%clk 0:00:22.8]} 51... Ne1 {[%clk 0:02:28.3]} 52. Bxf4 {[%clk 0:00:20.5]}
52... Nxf3 {[%clk 0:02:28.2]} 53. Bg3 {[%clk 0:00:21.3]} 53... Kxa2 {[%clk
0:02:15.5]} 54. Kxc4 {[%clk 0:00:21.5]} 54... Kb2 {[%clk 0:02:17]} 55. d5 {[%clk
0:00:19.3]} 55... exd5+ {[%clk 0:02:17.1]} 56. Kxd5 {[%clk 0:00:20.2]} 56... Kc3
{[%clk 0:02:18.4]} 57. Ke6 {[%clk 0:00:19.7]} 57... g5 {[%clk 0:02:19.6]} 58.
hxg5 {[%clk 0:00:19.8]} 58... Nxg5+ {[%clk 0:02:20.4]} 59. Kf5 {[%clk
0:00:19.6]} 59... Nf3 {[%clk 0:02:20.4]} 60. Kg6 {[%clk 0:00:19.2]} 60... h4
{[%clk 0:02:22.3]} 61. Bxh4 {[%clk 0:00:20]} 1/2-1/2

[Event "*** Titled Tuesday Blitz"]
[Site "Chess.com"]
[Date "2020.02.04"]
[Round "6"]
[White "GelmanAlexander"]
[Black "Misha_Bilous"]
[Result "1-0"]
[WhiteElo "2460"]
[BlackElo "2470"]
[TimeControl "180+2"]
[EndTime "10:21:12 PST"]
[Termination "GelmanAlexander won by resignation"]

1. e4 {[%clk 0:03:01.9]} 1... c5 {[%clk 0:02:59.9]} 2. b4 {[%clk 0:03:02.4]}
2... cxb4 {[%clk 0:02:52.8]} 3. a3 {[%clk 0:03:02.6]} 3... bxa3 {[%clk
0:02:52.8]} 4. d4 {[%clk 0:03:03]} 4... e6 {[%clk 0:02:49]} 5. Bd3 {[%clk
0:03:00.8]} 5... d5 {[%clk 0:02:48]} 6. e5 {[%clk 0:03:02]} 6... Nc6 {[%clk
0:02:46.7]} 7. c3 {[%clk 0:03:03.2]} 7... Nge7 {[%clk 0:02:26.8]} 8. Nf3 {[%clk
0:02:40.8]} 8... Ng6 {[%clk 0:02:26]} 9. h4 {[%clk 0:02:41.6]} 9... Be7 {[%clk
0:02:14.9]} 10. h5 {[%clk 0:02:42.1]} 10... Nh4 {[%clk 0:02:13.6]} 11. Nxh4
{[%clk 0:02:37.3]} 11... Bxh4 {[%clk 0:02:15.5]} 12. Qg4 {[%clk 0:02:38.3]}
12... Be7 {[%clk 0:01:46.2]} 13. Qxg7 {[%clk 0:02:39.3]} 13... Kd7 {[%clk
0:01:46.5]} 14. Bxh7 {[%clk 0:02:09.4]} 14... Qf8 {[%clk 0:00:57.2]} 15. h6
{[%clk 0:01:59.9]} 15... b5 {[%clk 0:00:40.5]} 16. Nxa3 {[%clk 0:01:36.2]} 16...
b4 {[%clk 0:00:36.4]} 17. Nb5 {[%clk 0:01:36.5]} 17... bxc3 {[%clk 0:00:33.8]}
18. Rh3 {[%clk 0:01:25]} 18... Rb8 {[%clk 0:00:29.5]} 19. Nd6 {[%clk 0:01:03.8]}
19... Nxd4 {[%clk 0:00:18.8]} 20. Nxf7 {[%clk 0:00:50.1]} 20... Rxh7 {[%clk
0:00:13]} 21. Qxh7 {[%clk 0:00:47.2]} 21... c2 {[%clk 0:00:14.4]} 22. Rxa7+
{[%clk 0:00:39.5]} 22... Kc6 {[%clk 0:00:08.3]} 23. Rc3+ {[%clk 0:00:35.6]}
23... Kb6 {[%clk 0:00:08.8]} 24. Rac7 {[%clk 0:00:22.6]} 24... Bb4 {[%clk
0:00:08.6]} 25. Nd6 {[%clk 0:00:15.2]} 25... Bxd6 {[%clk 0:00:06.1]} 26. exd6
{[%clk 0:00:15.2]} 26... Qxd6 {[%clk 0:00:07.7]} 27. Be3 {[%clk 0:00:14.2]}
27... e5 {[%clk 0:00:04.3]} 28. Qxc2 {[%clk 0:00:13.1]} 28... Ka6 {[%clk
0:00:03]} 29. Bxd4 {[%clk 0:00:12]} 29... exd4 {[%clk 0:00:03.4]} 30. R3c6+
{[%clk 0:00:13.2]} 30... Rb6 {[%clk 0:00:03.9]} 31. Rxd6 {[%clk 0:00:14.3]}
31... Rxd6 {[%clk 0:00:05.7]} 32. Rxc8 {[%clk 0:00:15]} 32... d3 {[%clk
0:00:06.3]} 33. Qxd3+ {[%clk 0:00:16.1]} 1-0